bitfinex/quotes_ETHUSD_20240825
["timestamp","ask_amount","ask_price","bid_price","bid_amount"]
[1724614507305,2.3191,2769.2,2769.0,3.61139]
[1724614508158,2.3191,2769.2,2769.0,3.61134]
[1724614508356,2.3191,2769.2,2769.0,7.22266]
[1724614508940,2.3191,2769.5,2769.2,3.61114]
[1724614512480,2.3191,2769.5,2769.2,7.22221]
[1724614512677,2.3191,2769.5,2769.2,3.61107]
[1724614513057,2.3191,2769.5,2769.2,7.22214]
[1724614513262,2.3191,2769.5,2769.2,3.61107]
[1724614513576,2.3191,2769.5,2769.2,4.45983682]
[1724614513955,2.3191,2769.5,2769.2,5.72508505]
[1724614514779,2.3191,2769.5,2769.2,4.45982682]
[1724614514965,2.3191,2769.5,2769.2,3.61106]
[1724614518170,2.3191,2769.5,2769.3,3.611]
[1724614518534,2.3191,2769.5,2769.2,4.87631823]
[1724614521753,2.3191,2769.5,2769.2,3.61106]
[1724614528716,2.3191,2769.5,2769.3,3.61101]
[1724614529025,2.3193,2769.8,2769.5,3.61074]
[1724614533409,2.3193,2769.8,2769.3,7.944127]
[1724614535135,2.3193,2769.8,2769.4,3.61087]
[1724614536359,2.3193,2769.8,2769.3,4.333117]
[1724614536519,2.3193,2769.8,2769.3,3.61091]
[1724614540341,6.61005,2770.1,2769.1,3.61119]
[1724614540342,2.3193,2769.6,2769.1,3.61119]
[1724614540838,2.3193,2769.5,2769.1,3.61119]
[1724614542841,2.3193,2769.5,2769.1,7.22239]
[1724614543043,2.3193,2769.5,2769.1,3.61119]
[1724614543939,2.3193,2769.5,2769.1,7.22239]
[1724614545455,2.3193,2769.5,2769.2,3.61113]
[1724614546273,2.3193,2769.5,2769.3,4.87618823]
[1724614547219,2.3193,2769.5,2769.4,3.61089]
[1724614547534,2.3193,2769.5,2769.3,4.87618823]
[1724614549124,2.3193,2769.5,2769.3,8.48712823]
[1724614550047,2.3193,2769.5,2769.3,4.87618823]
[1724614550633,2.3193,2769.5,2769.3,8.48712823]
[1724614550834,2.3193,2769.5,2769.3,5.80977684]
[1724614554591,2.3193,2769.5,2769.1,3.61122]
[1724614554592,2.3193,2769.5,2769.1,8.48765823]
[1724614554747,2.3193,2769.5,2769.1,4.87643823]
[1724614555264,2.3193,2769.5,2769.2,3.61114]
[1724614560971,2.3193,2769.5,2769.3,3.611]
[1724614562753,2.3193,2769.5,2769.3,7.22194]
[1724614562949,2.3193,2769.5,2769.4,3.61089]
[1724614568897,2.3337,2770.0,2769.6,3.61062]
[1724614570156,2.3337,2770.0,2769.5,3.61074]
[1724614571259,2.4518,2769.9,2769.5,3.61074]
[1724614572118,6.06224,2769.8,2769.2,3.61107]
[1724614572417,2.4518,2769.6,2769.2,3.61107]
[1724614573910,2.4518,2769.6,2769.2,3.61107]
[1724614574816,2.4518,2769.6,2769.2,7.22214]
[1724614576375,2.4518,2769.6,2769.2,3.61107]
[1724614576845,2.4518,2769.6,2769.2,7.22215]
[1724614577819,2.4518,2769.6,2769.1,3.61127]
[1724614577977,2.4518,2769.5,2769.1,3.61127]
[1724614578973,2.4518,2769.5,2769.2,3.61111]
[1724614590979,2.4518,2769.5,2769.0,3.61132]
[1724614591131,2.4766,2769.4,2768.8,3.61159]
[1724614591289,2.4766,2769.2,2768.8,3.61159]
[1724614592535,2.4766,2769.2,2768.5,3.61198]
[1724614592536,2.4766,2769.0,2768.6,3.61191]
[1724614594529,2.4766,2769.0,2768.7,3.61179]
[1724614603347,2.4766,2769.0,2768.9,4.87679823]
[1724614603504,2.3476,2769.4,2768.9,5.72564905]
[1724614603704,2.3476,2769.4,2768.9,4.87679823]
[1724614605842,2.3476,2769.3,2768.9,1.26525823]
[1724614606590,2.3476,2769.3,2768.9,4.87670823]
[1724614609676,2.3476,2769.3,2769.0,3.61139]
[1724614612975,2.3476,2769.3,2768.9,1.26525823]
[1724614613185,2.4967,2769.2,2768.7,4.87704823]
[1724614614665,2.4967,2769.2,2768.7,1.26525823]
[1724614614883,2.4967,2769.2,2768.8,3.61166]
[1724614616213,2.4967,2769.2,2768.8,7.22332]
[1724614616375,2.4967,2769.2,2768.8,3.61166]
[1724614616575,2.4967,2769.2,2768.8,7.22325]
[1724614617113,2.4967,2769.2,2768.8,3.61159]
[1724614617717,2.4967,2769.2,2768.8,7.22317]
[1724614620911,2.4967,2769.2,2768.8,3.61158]
[1724614621790,2.4967,2769.2,2768.8,7.22318]
[1724614623040,2.4967,2769.2,2768.8,3.61158]
[1724614624132,2.4967,2769.2,2768.8,3.61157]
[1724614624453,2.4967,2769.2,2768.9,1.26525823]
[1724614625117,2.4967,2769.2,2769.0,3.61139]
[1724614626428,2.4967,2769.2,2769.1,3.61128]
[1724614633075,2.4197,2769.5,2769.1,3.61128]
[1724614637497,3.61098,2769.4,2769.0,0.004]
[1724614637640,2.4197,2769.3,2769.0,0.004]
[1724614639860,2.4197,2769.3,2769.0,3.61539]
[1724614640674,2.4197,2769.3,2769.0,0.004]
[1724614645094,2.3077,2769.2,2769.0,0.004]
[1724614645268,3.61112,2769.3,2769.0,0.004]
[1724614645269,2.899582,2769.1,2769.0,0.004]
[1724614645475,2.3077,2769.1,2769.0,0.004]
[1724614665806,2.3077,2769.1,2769.0,3.61541]
[1724614680429,2.3077,2769.1,2769.0,0.004]
[1724614684150,11.0607,2769.6,2769.0,0.004]
[1724614684372,2.3623,2769.5,2769.1,3.61127]
[1724614684874,2.3623,2769.5,2769.2,3.61105]
[1724614687209,2.3623,2769.5,2769.0,3.61532]
[1724614688063,2.3623,2769.5,2769.1,3.61123]
[1724614691364,2.3623,2769.5,2769.0,0.004]
[1724614691859,2.3623,2769.5,2769.0,3.6154]
[1724614692355,3.82537506,2769.5,2769.0,3.6154]
[1724614694414,7.43613506,2769.5,2769.0,3.6154]
[1724614694600,2.3724,2769.4,2769.0,3.6154]
[1724614695324,5.98336,2769.4,2769.0,0.004]
[1724614695466,3.61128,2769.1,2769.0,0.004]
[1724614695812,6.47133382,2769.1,2769.0,0.004]
[1724614697021,2.86005382,2769.1,2769.0,0.004]
[1724614704145,4.12531205,2769.1,2769.0,0.004]
[1724614704374,11.34787205,2769.1,2769.0,0.004]
[1724614704675,7.73659205,2769.1,2769.0,0.004]
[1724614718568,11.34787205,2769.1,2769.0,0.004]
[1724614720222,17.95915205,2769.1,2769.0,0.004]
[1724614723363,14.34787205,2769.1,2769.0,0.004]
[1724614724120,13.08261382,2769.1,2769.0,0.004]
[1724614726860,14.34787205,2769.1,2769.0,0.004]
[1724614728862,3.61167,2768.8,2768.5,2.3359]
[1724614730463,3.61167,2768.8,2768.5,2.930714]
[1724614731583,3.6118,2768.7,2768.3,2.4067]
[1724614731904,3.6118,2768.7,2768.1,3.61252]
[1724614731905,7.28285823,2768.7,2768.1,3.61252]
[1724614733481,3.61205,2768.6,2768.0,0.004]
[1724614733679,7.28285823,2768.7,2768.0,0.004]
[1724614733680,3.61206,2768.5,2768.0,0.004]
[1724614733858,3.61206,2768.5,2768.0,1.09414882]
[1724614734370,3.61219,2768.4,2768.0,1.09414882]
[1724614734572,3.61219,2768.4,2768.0,0.004]
[1724614735759,3.61206,2768.5,2768.0,0.004]
[1724614737906,3.61206,2768.5,2768.0,3.61668]
[1724614740860,2.3838,2768.6,2768.0,3.61668]
[1724614741101,5.99575,2768.6,2768.0,3.61668]
[1724614741402,3.61186,2768.7,2768.1,7.22506]
[1724614741567,3.61186,2768.7,2768.1,7.22498]
[1724614741969,3.61186,2768.7,2768.2,3.61244]
[1724614742168,7.45,2768.8,2768.3,2.3168]
[1724614742383,7.45,2768.8,2768.4,3.61211]
[1724614745560,7.45,2768.8,2768.5,3.61206]
[1724614745809,3.0,2769.1,2768.6,3.61191]
[1724614745966,3.0,2769.0,2768.6,3.61191]
[1724614746403,13.31936,2769.2,2768.7,3.61168]
[1724614746404,9.7081,2769.2,2768.7,3.61168]
[1724614746713,9.7081,2769.2,2768.7,4.334039]
[1724614747604,13.31926,2769.2,2768.7,0.722359]
[1724614747761,13.31926,2769.2,2768.6,3.61191]
[1724614748272,14.58451823,2769.2,2768.6,3.61191]
[1724614751712,7.13451823,2769.2,2768.6,3.61191]
[1724614752597,3.61155,2768.9,2768.4,3.61214]
[1724614752919,7.223,2769.0,2768.4,3.61214]
[1724614753205,3.6115,2769.0,2768.4,4.76474981]
[1724614754173,3.6115,2769.0,2768.5,3.61205]
[1724614760988,7.24166823,2769.2,2768.6,3.61191]
[1724614762132,10.85290823,2769.2,2768.6,3.61191]
[1724614763834,7.24166823,2769.2,2768.6,3.61191]
[1724614763994,10.85291823,2769.2,2768.6,3.61191]
[1724614764926,7.24166823,2769.2,2768.6,3.61191]
[1724614765510,10.85290823,2769.2,2768.6,3.61191]
[1724614765711,7.24166823,2769.2,2768.6,3.61191]
[1724614768368,11.93817005,2769.2,2768.6,3.61191]
[1724614772876,3.61131,2769.1,2768.6,3.61191]
[1724614775431,1.26525823,2768.8,2768.2,3.61239]
[1724614775632,1.26525823,2768.6,2768.0,3.6166]
[1724614775828,2.4372,2768.5,2768.0,3.6166]
[1724614776373,2.4372,2768.5,2768.1,3.61255]
[1724614789586,2.4372,2768.5,2768.0,0.004]
[1724614789884,2.4511,2768.3,2768.0,0.004]
[1724614796185,2.4511,2768.2,2768.0,0.004]
[1724614804615,2.4664,2768.5,2768.0,4.88195823]
[1724614805613,2.4664,2768.5,2768.0,4.88188823]
[1724614807112,2.4664,2768.5,2768.0,3.61663]
[1724614812519,6.0785,2768.5,2768.0,3.61663]
[1724614812747,4.581243,2768.4,2768.0,0.004]
[1724614812950,2.4006,2768.3,2768.0,0.004]
[1724614813809,6.01301,2768.3,2768.0,0.004]
[1724614815147,2.4006,2768.3,2768.0,0.004]
[1724614817444,2.4006,2768.3,2768.0,3.61669]
[1724614821360,2.4006,2768.3,2768.0,3.61669]
[1724614822865,2.4006,2768.3,2768.0,3.58669]
[1724614824237,2.4006,2768.3,2767.8,7.22575]
[1724614825672,2.4006,2768.3,2767.9,3.6128]
[1724614830595,2.4006,2768.3,2768.0,3.61264]
[1724614839526,7.45,2768.7,2768.0,1.98781223]
[1724614839724,2.4044,2768.6,2768.3,3.61223]
[1724614840004,2.4044,2768.6,2768.2,3.61233]
[1724614845646,2.4044,2768.6,2768.1,3.61257]
[1724614845831,2.3748,2768.5,2768.1,3.61257]
[1724614860344,7.45,2768.7,2768.3,3.61224]
[1724614860521,9.7179,2768.7,2768.4,1.26525823]
[1724614860853,9.7179,2768.7,2768.6,3.61193]
[1724614861060,2.2679,2768.7,2768.6,3.61193]
[1724614861216,2.2679,2768.7,2768.4,5.21613325]
[1724614861417,2.2679,2768.7,2768.4,2.48689058]
[1724614861656,3.61129,2769.1,2768.6,3.61181]
[1724614861657,2.2679,2769.1,2768.6,3.61181]
[1724614862324,2.2679,2769.1,2768.7,3.61179]
[1724614863823,2.2679,2769.1,2768.8,3.61164]
[1724614863987,2.2679,2769.1,2768.7,7.22349]
[1724614864181,2.2679,2769.1,2768.8,3.61161]
[1724614864823,2.2679,2769.1,2768.9,3.61145]
[1724614865984,2.2679,2769.1,2768.9,7.2229]
[1724614866337,2.2679,2769.1,2768.9,3.61144]
[1724614867119,2.2679,2769.1,2769.0,3.61141]
[1724614891170,7.45,2769.5,2769.1,3.61119]
[1724614891171,2.3996,2769.3,2769.1,3.61119]
[1724614897140,2.3996,2769.3,2769.1,3.46119]
[1724614900406,2.3996,2769.3,2768.9,3.61142]
[1724614900586,2.3996,2769.3,2769.0,3.61137]
[1724614900742,2.3996,2769.2,2768.6,3.61181]
[1724614901073,2.3996,2769.1,2768.7,3.61179]
[1724614903069,2.3996,2769.1,2768.8,3.61163]
[1724614905559,2.3996,2769.1,2768.6,3.61181]
[1724614905760,2.2922,2768.9,2768.6,3.61181]
[1724614906279,2.2922,2768.9,2768.6,7.22367]
[1724614906683,2.2922,2768.9,2768.7,3.61177]
[1724614908959,2.2922,2768.9,2768.8,3.61167]
[1724614919804,2.4764,2769.2,2768.9,3.61152]
[1724614920004,2.4764,2769.2,2769.0,3.61139]
[1724614920208,2.72404,2769.2,2769.0,3.61139]
[1724614925712,2.72404,2769.2,2768.8,7.2232]
[1724614926006,2.4764,2769.2,2768.8,7.2232]
[1724614927530,2.4764,2769.2,2768.9,3.61152]
[1724614929190,2.4764,2769.2,2768.8,3.61154]
[1724614931096,2.4764,2769.2,2768.8,7.22314]
[1724614931297,2.4764,2769.2,2768.9,3.61153]
[1724614932435,2.3292,2769.4,2769.1,3.61128]
[1724614933921,2.3292,2769.4,2769.0,3.6114]
[1724614935332,2.3292,2769.4,2769.0,7.2228]
[1724614935536,2.3292,2769.4,2769.0,3.61133]
[1724614938334,2.3292,2769.4,2769.0,7.22266]
[1724614938865,2.3292,2769.4,2769.0,3.61133]
[1724614939460,2.3292,2769.4,2769.0,3.61132]
[1724614940043,2.3292,2769.4,2769.0,7.22265]
[1724614940359,2.3292,2769.4,2769.0,3.61132]
[1724614940558,2.3292,2769.4,2769.0,7.22264]
[1724614941167,2.3292,2769.4,2769.1,3.61126]
[1724614941568,2.3292,2769.4,2769.2,3.6111]
[1724614943940,2.3292,2769.4,2769.0,7.22262]
[1724614945476,2.3292,2769.4,2769.1,3.61127]
[1724614945843,2.3292,2769.4,2769.0,3.6113]
[1724614946173,2.3292,2769.4,2769.0,7.22263]
[1724614947642,2.3292,2769.4,2769.0,3.6113]
[1724614947964,2.4772,2769.3,2768.8,3.61159]
[1724614949247,2.4772,2769.2,2768.8,3.61159]
[1724614950484,2.4772,2769.2,2768.9,3.61144]
[1724614963005,2.4085,2769.1,2768.6,7.22371]
[1724614963786,2.4085,2769.1,2768.7,3.61178]
[1724614964988,2.4085,2769.1,2768.8,3.61166]
[1724614969479,2.4085,2769.1,2768.8,7.22326]
[1724614970514,2.4085,2769.1,2768.8,7.22319]
[1724614973724,2.4085,2769.1,2768.9,3.61152]
[1724614978352,2.64935,2769.1,2768.9,3.61152]
[1724614979424,1.26525823,2769.0,2768.6,3.61182]
[1724614979606,2.3258,2768.9,2768.6,3.61182]
[1724614980725,2.3258,2768.9,2768.4,7.22422]
[1724614980912,4.87666823,2769.0,2768.5,3.61205]
[1724614980913,2.3258,2768.7,2768.5,3.61205]
[1724614993585,2.3258,2768.7,2768.4,7.22423]
[1724614993732,2.3258,2768.7,2768.4,7.22422]
[1724614998293,2.3258,2768.7,2768.5,3.61206]
[1724614999085,2.3258,2768.7,2768.4,3.61211]
[1724614999240,2.3258,2768.7,2768.4,7.22422]
[1724615000270,2.55838,2768.7,2768.4,3.61211]
[1724615002309,2.55838,2768.7,2768.3,3.61232]
[1724615002683,2.55838,2768.7,2768.0,7.22525]
[1724615002684,2.3855,2768.4,2768.0,7.22525]
[1724615002973,2.3855,2768.4,2768.0,3.61262]
[1724615003363,2.3855,2768.3,2768.0,3.61262]
[1724615004494,2.3855,2768.3,2768.0,7.22526]
[1724615004690,2.3855,2768.3,2768.0,3.61262]
[1724615013113,2.3855,2768.3,2768.0,3.61362]
[1724615031789,2.3855,2768.3,2768.0,7.22625]
[1724615032101,2.3855,2768.3,2768.0,3.61362]
[1724615036943,1.63033405,2768.3,2768.0,0.001]
[1724615037140,1.26525823,2768.1,2768.0,0.001]
[1724615037266,3.61415823,2768.1,2768.0,0.001]
[1724615037464,7.22673823,2768.1,2768.0,0.001]
[1724615038570,3.61415823,2768.1,2768.0,0.001]
[1724615039096,2.3489,2768.1,2768.0,0.001]
[1724615040385,3.07154882,2768.1,2768.0,0.001]
[1724615047480,2.3489,2768.1,2768.0,0.001]
[1724615054353,3.6122,2768.4,2768.0,0.001]
[1724615054354,5.8823,2768.4,2768.0,0.001]
[1724615057748,2.3461,2768.6,2768.1,1.26525823]
[1724615057906,2.3461,2768.6,2768.4,3.61217]
[1724615058126,2.3461,2768.6,2768.4,3.61216]
[1724615058330,2.3461,2768.6,2768.4,3.973376]
[1724615061572,2.3461,2768.6,2768.4,0.361216]
[1724615067388,2.3461,2768.6,2768.4,0.361216]
[1724615075426,2.3461,2768.6,2768.3,3.61227]
[1724615087253,2.3451,2768.6,2768.3,3.61227]
[1724615090817,2.496,2768.9,2768.5,4.87731823]
[1724615091065,2.496,2768.9,2768.6,3.61186]
[1724615091263,2.496,2768.9,2768.7,0.84891782]
[1724615091620,2.496,2768.9,2768.6,3.61186]
[1724615091822,2.496,2768.9,2768.7,3.61178]
[1724615092039,2.496,2768.9,2768.7,3.61173]
[1724615092855,2.496,2768.9,2768.6,3.6119]
[1724615094043,2.496,2768.9,2768.8,3.61167]
[1724615094239,2.496,2768.9,2768.8,4.334027]
[1724615095177,2.345,2769.3,2768.9,3.61144]
[1724615100398,2.345,2769.3,2769.0,3.61139]
[1724615103236,2.345,2769.3,2769.0,7.22271]
[1724615103380,2.345,2769.3,2769.1,4.333441]
[1724615104442,2.345,2769.3,2769.1,0.722271]
[1724615104556,2.345,2769.3,2769.0,3.61132]
[1724615114787,1.26525823,2769.2,2768.8,3.61158]
[1724615114994,2.2596,2769.1,2768.8,3.61158]
[1724615117540,2.2596,2769.1,2768.8,7.22316]
[1724615117743,2.2596,2769.1,2768.8,7.945476]
[1724615118239,2.2596,2769.1,2768.8,7.945496]
[1724615118480,2.2596,2769.1,2768.9,3.61153]
[1724615121071,2.2596,2769.1,2768.8,7.22317]
[1724615121612,2.2596,2769.1,2768.6,3.61185]
[1724615121790,2.2596,2768.9,2768.6,3.61185]
[1724615130171,2.2596,2768.9,2768.6,7.22371]
[1724615130269,2.2596,2768.9,2768.6,3.61185]
[1724615130669,2.2596,2768.9,2768.6,7.22371]
[1724615130871,2.2596,2768.9,2768.6,3.61185]
[1724615131713,2.2596,2768.9,2768.6,7.2237]
[1724615131908,2.2596,2768.9,2768.6,3.61185]
[1724615134483,2.48556,2768.9,2768.5,3.612]
[1724615134679,2.4851,2768.8,2768.4,3.6121]
[1724615135520,2.4851,2768.8,2768.4,7.22421]
[1724615135721,2.4851,2768.8,2768.4,7.22422]
[1724615136732,2.4851,2768.8,2768.5,3.61203]
[1724615137159,2.4851,2768.8,2768.6,3.61191]
[1724615146537,2.3456,2769.2,2768.7,3.6118]
[1724615147562,5.95675,2769.2,2768.7,3.6118]
[1724615147772,3.0,2769.1,2768.7,3.6118]
[1724615148866,5.95676,2769.2,2768.7,3.6118]
[1724615150074,2.3456,2769.2,2768.7,7.22353]
[1724615150378,2.3456,2769.2,2768.7,3.61173]
[1724615150677,2.3456,2769.2,2768.7,3.61172]
[1724615150899,2.3456,2769.2,2768.7,7.22344]
[1724615151040,2.3456,2769.2,2768.7,3.61172]
[1724615157638,2.3456,2769.2,2768.9,3.61153]
[1724615157851,7.45,2769.3,2769.1,3.61127]
[1724615158051,2.3339,2769.4,2768.9,3.61143]
[1724615159164,2.3339,2769.4,2769.0,3.61139]
[1724615161580,2.3339,2769.4,2769.1,3.61127]
[1724615161779,2.3339,2769.4,2769.1,4.33354]
[1724615168594,2.3339,2769.4,2769.1,3.61127]
[1724615169885,2.3339,2769.4,2768.9,3.61143]
[1724615169886,2.3093,2769.3,2768.9,3.61143]
[1724615174967,2.3093,2769.3,2768.9,7.22289]
[1724615175474,2.3093,2769.3,2769.0,3.6114]
[1724615178887,2.3093,2769.3,2768.9,3.61143]
[1724615178888,2.3093,2769.3,2769.1,3.61127]
[1724615185479,2.3093,2769.3,2769.2,3.61115]
[1724615186516,2.4659,2769.6,2769.3,3.611]
[1724615188323,2.4659,2769.6,2769.3,3.61094]
[1724615188544,2.4659,2769.6,2769.3,7.22186]
[1724615188724,2.4659,2769.6,2769.3,3.61092]
[1724615189285,2.4659,2769.6,2769.3,4.405359]
[1724615190453,2.4659,2769.6,2769.3,8.016299]
[1724615190654,2.4659,2769.6,2769.3,8.016289]
[1724615190858,2.4659,2769.6,2769.3,4.405359]
[1724615191859,2.4659,2769.6,2769.3,8.016289]
[1724615192067,2.4659,2769.6,2769.3,4.405359]
[1724615192369,2.4659,2769.6,2769.4,0.4405359]
[1724615192507,2.3134,2769.8,2769.5,3.61076]
[1724615192832,2.3134,2769.8,2769.7,3.61049]
[1724615193921,2.3134,2769.8,2769.5,7.2214]
[1724615194122,2.3134,2769.8,2769.5,7.98759359]
[1724615195341,2.3134,2769.8,2769.5,4.37683359]
[1724615200317,2.3134,2769.8,2769.5,3.61064]
[1724615200554,2.3134,2769.8,2769.3,3.6109]
[1724615200855,2.3134,2769.8,2769.3,7.22183]
[1724615201102,2.3134,2769.8,2769.3,3.6109]
[1724615201567,2.3391,2769.7,2769.1,3.6112]
[1724615201777,2.3391,2769.6,2769.1,3.6112]
[1724615202672,2.3391,2769.5,2769.1,3.6112]
[1724615204233,2.3391,2769.5,2769.1,7.2224]
[1724615204734,2.3391,2769.5,2769.2,3.61114]
[1724615209773,3.83826823,2769.5,2769.0,3.61138]
[1724615209998,3.83826823,2769.5,2769.0,7.22271]
[1724615209999,2.3462,2769.4,2769.0,7.22271]
[1724615210163,2.3462,2769.4,2769.0,3.61133]
[1724615210331,2.3462,2769.4,2769.1,3.61127]
[1724615214250,2.2962,2769.3,2769.1,3.61127]
[1724615221485,2.2962,2769.3,2769.1,3.6112]
[1724615221655,2.2667,2769.7,2769.3,3.61098]
[1724615221990,2.2667,2769.7,2769.3,3.61094]
[1724615224196,2.2667,2769.7,2769.5,3.61068]
[1724615226288,7.45,2769.9,2769.7,3.61041]
[1724615226514,2.4277,2770.0,2769.7,3.61041]
[1724615230091,2.4277,2770.0,2769.7,3.61039]
[1724615236796,2.4277,2770.0,2769.5,3.61067]
[1724615236997,2.3782,2769.8,2769.3,7.22187]
[1724615238193,2.3782,2769.8,2769.4,3.61088]
[1724615239982,2.3782,2769.8,2769.4,3.60967876]
[1724615243203,2.3782,2769.8,2769.5,3.61073]
[1724615245372,2.3782,2769.8,2769.5,7.22141]
[1724615245697,2.3782,2769.8,2769.5,3.61068]
[1724615250715,2.3782,2769.8,2769.6,3.61053]
[1724615252039,1.26525823,2770.2,2769.6,3.61053]
[1724615252040,2.4226,2770.2,2769.8,3.61031]
[1724615252327,2.4226,2770.2,2769.8,3.6103]
[1724615256377,2.4226,2770.2,2769.9,1.26525823]
[1724615256798,2.4226,2770.2,2770.0,3.61002]
[1724615257116,2.4226,2770.2,2770.1,3.60997]
[1724615265337,2.2979,2770.7,2770.3,3.60968]
[1724615265506,2.2979,2770.7,2770.4,3.60947]
[1724615268135,2.2979,2770.7,2770.2,7.21951]
[1724615268293,2.2979,2770.7,2770.2,3.60975]
[1724615268497,2.2979,2770.7,2770.2,7.21951]
[1724615269913,2.2979,2770.7,2770.3,3.60971]
[1724615271925,2.2979,2770.7,2770.4,3.60956]
[1724615273434,2.2979,2770.7,2770.5,3.60934]
[1724615277950,2.2979,2770.7,2770.6,3.60932]
[1724615278943,2.3009,2771.0,2770.6,3.60932]
[1724615282714,2.3009,2771.0,2770.7,3.60919]
[1724615307559,2.3009,2771.0,2770.9,3.60893]
[1724615308040,11.05835,2771.4,2770.9,3.60893]
[1724615308041,2.4034,2771.3,2770.9,3.60893]
[1724615310976,2.4034,2771.3,2770.9,3.60893]
[1724615315677,2.4034,2771.3,2771.0,3.60871]
[1724615316504,2.4034,2771.3,2770.9,3.60893]
[1724615316683,2.4153,2771.1,2770.8,3.60906]
[1724615316884,2.4153,2771.1,2770.7,7.21821]
[1724615317190,2.4153,2771.1,2770.8,3.60903]
[1724615318422,2.4153,2771.1,2770.7,7.21818]
[1724615321835,2.4153,2771.1,2770.8,3.60905]
[1724615327736,2.4153,2771.1,2770.9,3.60891]
[1724615330096,2.4153,2771.1,2771.0,3.6088]
[1724615333351,2.4153,2771.1,2770.9,3.60885]
[1724615342346,2.4153,2771.1,2770.9,4.45717382]
[1724615342541,2.4153,2771.1,2771.0,3.6088]
[1724615342758,2.3176,2771.4,2771.0,3.6088]
[1724615351568,2.3176,2771.4,2770.7,4.87436823]
[1724615351569,2.3336,2771.3,2770.8,3.60894]
[1724615352474,2.3336,2771.3,2770.9,3.60891]
[1724615355555,2.3336,2771.3,2770.7,4.87436823]
[1724615355556,4.563455,2771.3,2770.7,3.60909]
[1724615355759,2.3336,2771.2,2770.7,3.60909]
[1724615356853,2.3336,2771.1,2770.7,3.60909]
[1724615357173,2.3336,2771.0,2770.3,4.36336539]
[1724615357372,2.3336,2771.0,2770.3,5.62862362]
[1724615357557,2.3336,2771.0,2770.4,0.56286236]
[1724615357901,2.3336,2771.0,2770.3,5.63215929]
[1724615358120,5.94242,2771.0,2770.5,3.60945]
[1724615358426,2.3336,2770.9,2770.5,3.60945]
[1724615358574,2.3336,2770.9,2770.5,7.2189]
[1724615358889,2.3336,2770.9,2770.5,3.60945]
[1724615359080,2.3336,2770.9,2770.6,3.60932]
[1724615362395,2.3336,2770.9,2770.7,3.60918]
[1724615365001,2.3336,2770.9,2770.7,7.2183]
[1724615370402,2.3336,2770.9,2770.8,3.60906]
[1724615373501,2.3336,2770.9,2770.8,7.21812]
[1724615376201,2.3336,2770.9,2770.8,8.06645782]
[1724615380015,2.3336,2770.9,2770.8,4.45739782]
[1724615391446,2.3336,2770.9,2770.6,3.60927]
[1724615392334,2.3336,2770.9,2770.6,7.21851]
[1724615393339,2.3336,2770.9,2770.7,3.60916]
[1724615395035,2.3336,2770.9,2770.8,3.60906]
[1724615395279,7.45,2771.3,2770.8,3.60899]
[1724615395280,2.3587,2771.1,2770.8,3.60899]
[1724615395485,2.3587,2771.1,2770.9,3.969759]
[1724615399030,2.3587,2771.1,2770.9,0.360899]
[1724615399834,2.3587,2771.1,2770.9,3.969819]
[1724615401738,7.45,2771.3,2770.9,3.969819]
[1724615401972,9.8087,2771.3,2770.9,3.969819]
[1724615402348,9.8087,2771.3,2771.0,4.3666399]
[1724615402562,7.45,2771.3,2771.1,3.60866]
[1724615403366,7.45,2771.3,2771.0,4.3665899]
[1724615403759,7.45,2771.3,2771.0,7.9752999]
[1724615403957,7.45,2771.3,2771.0,4.3665899]
[1724615404145,7.45,2771.3,2771.1,0.59927471]
[1724615406139,2.3587,2771.5,2771.1,0.59927471]
[1724615406343,2.3587,2771.5,2771.1,5.47318294]
[1724615406573,5.92236,2771.7,2771.2,3.60853]
[1724615406777,5.92236,2771.7,2771.1,1.26525823]
[1724615407146,5.92236,2771.7,2771.1,4.87390823]
[1724615407962,2.3144,2771.6,2771.1,4.87390823]
[1724615411164,2.3144,2771.6,2771.1,8.48249823]
[1724615411624,2.3144,2771.6,2771.1,4.87384823]
[1724615413919,2.3153,2771.5,2771.1,4.87384823]
[1724615414228,2.3153,2771.5,2771.0,3.60879]
[1724615421982,3.60804,2771.6,2770.9,3.60889]
[1724615421983,3.60836,2771.4,2770.9,3.60889]
[1724615422183,2.3198,2771.3,2770.9,3.60889]
[1724615422380,2.3198,2771.3,2770.9,4.45721782]
[1724615423207,2.3198,2771.3,2770.9,8.06607782]
[1724615423427,2.3198,2771.3,2770.9,8.06603782]
[1724615424126,2.3198,2771.3,2770.9,4.45717782]
[1724615424287,2.3198,2771.3,2770.7,3.60911]
[1724615424288,2.3198,2771.3,2770.7,3.60907]
[1724615424493,2.3198,2771.2,2770.7,7.21819]
[1724615424990,2.3198,2771.2,2770.7,3.60916]
[1724615425543,2.3198,2771.2,2770.7,7.21827]
[1724615426137,2.3198,2771.2,2770.8,3.60906]
[1724615428257,2.3198,2771.2,2770.9,3.60892]
[1724615428659,2.3198,2771.2,2771.0,3.60871]
[1724615429424,2.3198,2771.2,2771.1,3.60867]
[1724615435404,2.3198,2771.2,2771.0,3.60871]
[1724615450434,2.3198,2771.2,2770.8,3.60898]
[1724615450640,2.3198,2771.2,2770.6,3.6092]
[1724615450987,2.3198,2771.2,2770.7,3.60916]
[1724615453038,2.3198,2771.2,2770.8,3.60904]
[1724615455368,2.3198,2771.2,2770.8,7.21803]
[1724615455832,2.3198,2771.2,2770.8,3.60899]
[1724615456036,2.3198,2771.2,2770.8,7.21796]